[Event "European School-ch 2019"]
[Site "Mamaia"]
[Date "2019.06.02"]
[Round "3.46"]
[White "Babic, Milana"]
[Black "Babic, Masa"]
[Result "1/2-1/2"]
[ECO "C47"]
[WhiteElo "1677"]
[BlackElo "1715"]
[Annotator "NA"]
[PlyCount "76"]
[EventDate "2019.05.31"]
[EventType "swiss"]
[EventCountry "ROU"]
[SourceTitle "playchess.com"]
[Source "ChessBase"]
[SourceQuality "1"]
[TimeControl "40/5400+30:1800+30"]

1. e4 {[%emt 0:00:00]} e5 {[%emt 0:00:00]} 2. Nf3 {[%emt 0:00:00]} Nc6 {[%emt 0:00:00]} 3. Nc3 {[%emt 0:00:00]} Nf6 {[%emt 0:00:00]} 4. Be2 {[%emt 0:00:02]} Be7 {[%emt 0:00:00]} 5. d3 {[%emt 0:00:12]} d6 {[%emt 0:00:00]} 6. Bg5 {[%emt 0:00:34]} O-O {[%emt 0:00:07]} 7. O-O {[%emt 0:00:35]} Be6 {[%emt 0:00:58]} 8. Re1 {[%emt 0:00:57]} h6 {[%emt 0:00:29]} 9. Bxf6 {[%emt 0:00:19]} Bxf6 {[%emt 0:00:06]} 10. Qd2 {[%emt 0:00:55]} Re8 {[%emt 0:00:40]} 11. Rad1 {[%emt 0:00:49]} Qd7 {[%emt 0:00:30]} 12. a3 {[%emt 0:01:11]} Rad8 {[%emt 0:01:51]} 13. b4 {[%emt 0:04:22]} a6 {[%emt 0:01:55]} 14. h3 {[%emt 0:00:16]} b5 {[%emt 0:01:56]} 15. Nh2 {[%emt 0:01:52]} Nd4 {[%emt 0:05:01]} 16. Bg4 {[%emt 0:00:54]} Bxg4 {[%emt 0:00:22]} 17. Nxg4 Be7 {[%emt 0:01:17]} 18. Ne2 {[%emt 0:01:01]} Nxe2+ {[%emt 0:00:21]} 19. Qxe2 {[%emt 0:00:10]} c6 {[%emt 0:01:18]} 20. Ne3 {[%emt 0:00:16]} Bg5 {[%emt 0:00:36]} 21. Kh2 {[%emt 0:02:11]} Bxe3 {[%emt 0:00:18]} 22. Qxe3 {[%emt 0:00:36]} f6 {[%emt 0:00:30]} 23. f3 {[%emt 0:00:17]} g5 {[%emt 0:01:32]} 24. g4 {[%emt 0:00:35]} Kg7 {[%emt 0:00:17]} 25. c3 {[%emt 0:00:42]} Ra8 {[%emt 0:01:31]} 26. Qf2 {[%emt 0:02:05]} a5 {[%emt 0:00:25]} 27. h4 {[%emt 0:00:15]} a4 {[%emt 0:00:10]} 28. h5 {[%emt 0:00:06]} d5 {[%emt 0:00:34]} 29. Qe3 {[%emt 0:02:52]} Qa7 {[%emt 0:00:31]} 30. Qxa7+ {[%emt 0:00:17]} Rxa7 {[%emt 0:00:10]} 31. Rd2 {[%emt 0:00:06]} Kf7 {[%emt 0:00:09]} 32. Kg2 {[%emt 0:00:23]} Rd7 {[%emt 0:00:21]} 33. Kf2 {[%emt 0:00:12]} d4 {[%emt 0:00:11]} 34. cxd4 {[%emt 0:00:16]} exd4 {[%emt 0:00:18]} 35. Ke2 {[%emt 0:01:06]} Rd6 {[%emt 0:00:13]} 36. Rc2 {[%emt 0:00:09]} Ree6 {[%emt 0:00:06]} 37. Kd2 {[%emt 0:00:29]} Ke7 {[%emt 0:00:08]} 38. Rec1 {[%emt 0:00:24]} Kd7 {[%emt 0:00:11]} 1/2-1/2

[Event "European School-ch 2019"]
[Site "Mamaia"]
[Date "2019.06.02"]
[Round "3.47"]
[White "Arora, Tashika"]
[Black "Novikova, Daria"]
[Result "1/2-1/2"]
[ECO "D02"]
[WhiteElo "1471"]
[BlackElo "1441"]
[Annotator "NA"]
[PlyCount "173"]
[EventDate "2019.05.31"]
[EventType "swiss"]
[EventCountry "ROU"]
[SourceTitle "playchess.com"]
[Source "ChessBase"]
[SourceQuality "1"]
[TimeControl "40/5400+30:1800+30"]

1. d4 {[%emt 0:00:00]} d5 {[%emt 0:00:00]} 2. Nf3 {[%emt 0:00:00]} c6 {[%emt 0:00:00]} 3. Bf4 {[%emt 0:00:00]} Bf5 {[%emt 0:00:03]} 4. e3 {[%emt 0:00:30]} e6 {[%emt 0:00:20]} 5. Bd3 {[%emt 0:00:44]} Bxd3 {[%emt 0:01:26]} 6. Qxd3 {[%emt 0:00:11]} Bd6 {[%emt 0:01:41]} 7. Bg5 {[%emt 0:01:34]} Nf6 {[%emt 0:04:55]} 8. O-O {[%emt 0:00:48]} Nbd7 {[%emt 0:00:19]} 9. c4 {[%emt 0:01:42]} O-O {[%emt 0:05:51]} 10. Nc3 {[%emt 0:02:48]} Bb4 {[%emt 0:19:38]} 11. cxd5 {[%emt 0:03:48]} exd5 {[%emt 0:01:20]} 12. Rac1 {[%emt 0:03:57]} Bxc3 {[%emt 0:05:12]} 13. Rxc3 {[%emt 0:00:16]} Qe7 {[%emt 0:04:29]} 14. Rb3 {[%emt 0:01:02]} b6 {[%emt 0:02:01]} 15. Rc1 {[%emt 0:02:02]} c5 {[%emt 0:00:58]} 16. Rbc3 {[%emt 0:03:11]} Qe6 {[%emt 0:09:35]} 17. Bf4 {[%emt 0:05:52]} Ne4 {[%emt 0:03:44]} 18. Ng5 {[%emt 0:01:43]} Nxg5 {[%emt 0:05:24]} 19. Bxg5 {[%emt 0:00:12]} c4 {[%emt 0:00:27]} 20. Qe2 {[%emt 0:01:08]} Qf5 {[%emt 0:02:05]} 21. Bf4 {[%emt 0:01:05]} Rfe8 {[%emt 0:01:04]} 22. Qc2 {[%emt 0:02:25]} Qf6 {[%emt 0:01:42]} 23. Qa4 {[%emt 0:02:41]} Qe6 {[%emt 0:04:05]} 24. b3 {[%emt 0:02:35]} cxb3 {[%emt 0:01:34]} 25. Qxb3 {[%emt 0:01:09]} Nf6 {[%emt 0:00:49]} 26. Rc6 {[%emt 0:03:07]} Rec8 {[%emt 0:01:34]} 27. Qc2 {[%emt 0:01:09]} Rxc6 {[%emt 0:00:09]} 28. Qxc6 {[%emt 0:00:09]} Qxc6 {[%emt 0:00:04]} 29. Rxc6 {[%emt 0:00:06]} h6 {[%emt 0:02:06]} 30. f3 {[%emt 0:01:16]} b5 {[%emt 0:02:25]} 31. Rc5 {[%emt 0:01:43]} b4 {[%emt 0:00:54]} 32. Kf2 {[%emt 0:01:31]} a5 {[%emt 0:08:57]} 33. Rb5 {[%emt 0:03:00]} Kf8 {[%emt 0:00:31]} 34. Ke1 {[%emt 0:01:01]} Ke7 {[%emt 0:01:50]} 35. Bc7 {[%emt 0:00:37]} Rc8 {[%emt 0:00:51]} 36. Bxa5 {[%emt 0:00:27]} Rc1+ {[%emt 0:00:31]} 37. Kd2 {[%emt 0:00:11]} Rg1 {[%emt 0:00:12]} 38. Bxb4+ {[%emt 0:00:25]} Ke6 {[%emt 0:00:30]} 39. Rb6+ {[%emt 0:01:11]} Kf5 {[%emt 0:00:11]} 40. g4+ {[%emt 0:00:00]} Kg6 {[%emt 0:00:00]} 41. h4 {[%emt 0:04:05]} Rg2+ {[%emt 0:00:38]} 42. Kd3 {[%emt 0:00:08]} Rxa2 {[%emt 0:00:23]} 43. f4 {[%emt 0:04:04]} Kh7 {[%emt 0:03:14]} 44. g5 {[%emt 0:00:42]} hxg5 {[%emt 0:00:25]} 45. hxg5 {[%emt 0:00:20]} Ne4 {[%emt 0:01:05]} 46. Be1 {[%emt 0:05:35]} Ra3+ {[%emt 0:01:11]} 47. Ke2 {[%emt 0:00:31]} Ra2+ {[%emt 0:00:06]} 48. Kf1 {[%emt 0:04:27]} Ra3 {[%emt 0:00:34]} 49. Rb5 {[%emt 0:04:35]} Rxe3 {[%emt 0:01:40]} 50. Rxd5 {[%emt 0:00:45]} Rf3+ {[%emt 0:00:05]} 51. Kg2 {[%emt 0:03:27]} Rxf4 {[%emt 0:00:58]} 52. Kh3 {[%emt 0:03:01]} Rf1 {[%emt 0:01:00]} 53. Bh4 {[%emt 0:02:19]} Rh1+ {[%emt 0:02:33]} 54. Kg4 {[%emt 0:00:15]} Rg1+ {[%emt 0:00:22]} 55. Kf4 {[%emt 0:03:38]} Nc3 {[%emt 0:00:52]} 56. Re5 {[%emt 0:02:15]} Rd1 {[%emt 0:02:44]} 57. Ke3 {[%emt 0:00:33]} Rh1 {[%emt 0:00:30]} 58. Bg3 {[%emt 0:01:45]} Rg1 {[%emt 0:05:33]} 59. Kf2 {[%emt 0:02:56]} Rd1 {[%emt 0:00:57]} 60. Ke3 {[%emt 0:01:41]} Rg1 {[%emt 0:06:13]} 61. Kf2 {[%emt 0:07:26]} Rd1 {[%emt 0:00:18]} 62. Ke3 {[%emt 0:01:15]} Rg1 {[%emt 0:00:11]} 63. Bf4 {[%emt 0:09:21]} Nd1+ {[%emt 0:05:42]} 64. Kd2 {[%emt 0:00:12]} Rg4 {[%emt 0:01:11]} 65. Kxd1 {[%emt 0:00:59]} Rxf4 {[%emt 0:00:07]} 66. d5 {[%emt 0:00:16]} Rd4+ {[%emt 0:00:33]} 67. Ke2 {[%emt 0:00:07]} f6 {[%emt 0:00:24]} 68. gxf6 {[%emt 0:00:35]} gxf6 {[%emt 0:00:05]} 69. Re6 {[%emt 0:04:13]} Kg6 {[%emt 0:00:37]} 70. d6 {[%emt 0:00:39]} Kf5 {[%emt 0:00:18]} 71. Ke3 {[%emt 0:02:03]} Rd5 {[%emt 0:05:03]} 72. Re4 {[%emt 0:00:29]} Rxd6 {[%emt 0:00:13]} 73. Rf4+ {[%emt 0:00:21]} Kg5 {[%emt 0:00:31]} 74. Rf1 {[%emt 0:00:42]} f5 {[%emt 0:00:15]} 75. Rg1+ {[%emt 0:00:24]} Kf6 {[%emt 0:00:08]} 76. Rf1 {[%emt 0:01:04]} Ke5 {[%emt 0:01:37]} 77. Kf3 {[%emt 0:01:34]} Rd3+ {[%emt 0:00:11]} 78. Ke2 {[%emt 0:00:08]} Rd4 {[%emt 0:00:07]} 79. Kf3 {[%emt 0:02:28]} Rf4+ {[%emt 0:01:42]} 80. Ke2 {[%emt 0:00:24]} Ra4 {[%emt 0:00:57]} 81. Re1 {[%emt 0:00:47]} Re4+ {[%emt 0:00:22]} 82. Kf2 {[%emt 0:00:14]} Kf4 {[%emt 0:02:30]} 83. Rxe4+ {[%emt 0:00:11]} fxe4 {[%emt 0:00:37]} 84. Ke2 {[%emt 0:00:04]} e3 {[%emt 0:00:18]} 85. Ke1 {[%emt 0:00:13]} Ke4 {[%emt 0:00:05]} 86. Ke2 {[%emt 0:00:05]} Kd4 {[%emt 0:00:20]} 87. Ke1 {[%emt 0:00:08]} 1/2-1/2

[Event "European School-ch 2019"]
[Site "Mamaia"]
[Date "2019.06.02"]
[Round "3.48"]
[White "Janouskova, Adela"]
[Black "Lyukina, Sofya"]
[Result "1-0"]
[ECO "C50"]
[WhiteElo "1330"]
[BlackElo "1252"]
[Annotator "NA"]
[PlyCount "112"]
[EventDate "2019.05.31"]
[EventType "swiss"]
[EventCountry "ROU"]
[SourceTitle "playchess.com"]
[Source "ChessBase"]
[SourceQuality "1"]
[TimeControl "40/5400+30:1800+30"]

1. e4 {[%emt 0:00:00]} e5 {[%emt 0:00:00]} 2. Nf3 {[%emt 0:00:00]} Nc6 {[%emt 0:00:00]} 3. Bc4 {[%emt 0:00:00]} Nf6 {[%emt 0:00:12]} 4. d3 {[%emt 0:00:08]} Bc5 {[%emt 0:01:02]} 5. c3 {[%emt 0:00:24]} O-O {[%emt 0:01:43]} 6. O-O {[%emt 0:00:47]} Bb6 {[%emt 0:00:29]} 7. Be3 {[%emt 0:00:46]} d5 {[%emt 0:02:18]} 8. exd5 {[%emt 0:03:40]} Nxd5 {[%emt 0:00:15]} 9. Bxb6 {[%emt 0:04:43]} axb6 {[%emt 0:02:51]} 10. Re1 {[%emt 0:06:44]} Re8 {[%emt 0:03:03]} 11. Bb5 {[%emt 0:06:56]} f6 {[%emt 0:01:34]} 12. Bc4 {[%emt 0:07:02]} Na5 {[%emt 0:02:01]} 13. Bxd5+ {[%emt 0:02:12]} Qxd5 {[%emt 0:00:20]} 14. d4 {[%emt 0:03:19]} Nb3 {[%emt 0:01:29]} 15. c4 {[%emt 0:09:06]} Qa5 {[%emt 0:04:30]} 16. Qxb3 {[%emt 0:01:15]} Bg4 {[%emt 0:03:56]} 17. Qc3 {[%emt 0:10:07]} exd4 {[%emt 0:06:36]} 18. Qxa5 {[%emt 0:01:11]} bxa5 {[%emt 0:00:09]} 19. Nbd2 {[%emt 0:00:54]} c5 {[%emt 0:00:27]} 20. h3 {[%emt 0:00:55]} Bf5 {[%emt 0:00:40]} 21. Rxe8+ {[%emt 0:00:19]} Rxe8 {[%emt 0:00:09]} 22. Re1 {[%emt 0:04:28]} Rxe1+ {[%emt 0:00:35]} 23. Nxe1 {[%emt 0:00:04]} Kf7 {[%emt 0:00:21]} 24. Kf1 {[%emt 0:00:57]} Ke6 {[%emt 0:00:51]} 25. Ke2 {[%emt 0:00:11]} h5 {[%emt 0:00:20]} 26. Nd3 {[%emt 0:01:45]} Bxd3+ {[%emt 0:01:11]} 27. Kxd3 {[%emt 0:00:07]} g5 {[%emt 0:00:18]} 28. Ne4 {[%emt 0:03:48]} b6 {[%emt 0:00:46]} 29. a4 {[%emt 0:01:20]} Ke5 {[%emt 0:01:01]} 30. b3 {[%emt 0:01:19]} g4 {[%emt 0:00:23]} 31. hxg4 {[%emt 0:00:41]} hxg4 {[%emt 0:00:08]} 32. Nd2 {[%emt 0:03:57]} f5 {[%emt 0:01:25]} 33. Nb1 {[%emt 0:00:41]} Ke6 {[%emt 0:00:56]} 34. Na3 {[%emt 0:00:25]} Kd6 {[%emt 0:00:09]} 35. Nb5+ {[%emt 0:03:08]} Kc6 {[%emt 0:00:48]} 36. Na7+ {[%emt 0:00:47]} Kb7 {[%emt 0:00:23]} 37. Nb5 {[%emt 0:00:06]} Kc6 {[%emt 0:00:13]} 38. Na3 {[%emt 0:00:48]} Kd6 {[%emt 0:00:09]} 39. Nb1 {[%emt 0:00:07]} Ke6 {[%emt 0:00:07]} 40. Nd2 {[%emt 0:00:00]} Ke5 {[%emt 0:00:00]} 41. Nf1 {[%emt 0:00:37]} Kf4 {[%emt 0:01:47]} 42. Ng3 {[%emt 0:00:51]} Ke5 {[%emt 0:00:46]} 43. Nh5 {[%emt 0:00:50]} Ke6 {[%emt 0:00:35]} 44. Nf4+ {[%emt 0:00:14]} Ke5 {[%emt 0:03:44]} 45. Nd5 {[%emt 0:00:07]} Kd6 {[%emt 0:02:56]} 46. Nxb6 {[%emt 0:00:12]} Kc6 {[%emt 0:00:17]} 47. Nd5 {[%emt 0:00:55]} Kd6 {[%emt 0:00:09]} 48. g3 {[%emt 0:01:17]} Ke6 {[%emt 0:01:12]} 49. Nf4+ {[%emt 0:02:05]} Ke5 {[%emt 0:00:39]} 50. Ne2 {[%emt 0:01:14]} Kd6 {[%emt 0:00:12]} 51. Nxd4 {[%emt 0:01:59]} cxd4 {[%emt 0:00:10]} 52. Kxd4 {[%emt 0:00:03]} Ke6 {[%emt 0:00:14]} 53. c5 {[%emt 0:00:26]} Kd7 {[%emt 0:00:15]} 54. Kc4 {[%emt 0:00:12]} Kc6 {[%emt 0:00:29]} 55. b4 {[%emt 0:00:15]} axb4 {[%emt 0:00:21]} 56. Kxb4 {[%emt 0:00:04]} Kd5 1-0

[Event "European School-ch 2019"]
[Site "Mamaia"]
[Date "2019.06.02"]
[Round "3.49"]
[White "Kapicakova, Lucia"]
[Black "Putinceva, Marina"]
[Result "0-1"]
[ECO "C47"]
[WhiteElo "1776"]
[BlackElo "1471"]
[Annotator "NA"]
[PlyCount "80"]
[EventDate "2019.05.31"]
[EventType "swiss"]
[EventCountry "ROU"]
[SourceTitle "playchess.com"]
[Source "ChessBase"]
[SourceQuality "1"]
[TimeControl "40/5400+30:1800+30"]

1. e4 {[%emt 0:00:00]} e5 {[%emt 0:00:00]} 2. Nf3 {[%emt 0:00:00]} Nc6 {[%emt 0:00:00]} 3. Nc3 {[%emt 0:00:00]} Nf6 {[%emt 0:00:29]} 4. Be2 {[%emt 0:00:00]} Bb4 {[%emt 0:02:38]} 5. O-O {[%emt 0:00:45]} O-O {[%emt 0:01:24]} 6. Nd5 {[%emt 0:01:12]} d6 {[%emt 0:05:40]} 7. c3 {[%emt 0:07:53]} Ba5 {[%emt 0:02:08]} 8. b4 {[%emt 0:00:43]} Bb6 {[%emt 0:00:40]} 9. Nxb6 {[%emt 0:14:58]} axb6 {[%emt 0:01:53]} 10. Qc2 {[%emt 0:00:39]} Bg4 {[%emt 0:01:43]} 11. b5 {[%emt 0:04:00]} Nb8 {[%emt 0:07:47]} 12. d4 {[%emt 0:04:22]} Nbd7 {[%emt 0:03:06]} 13. Be3 {[%emt 0:06:16]} Qe7 {[%emt 0:01:25]} 14. d5 {[%emt 0:06:46]} h6 {[%emt 0:05:43]} 15. h3 {[%emt 0:11:54]} Bh5 {[%emt 0:00:50]} 16. Kh2 {[%emt 0:01:21]} Bg6 {[%emt 0:06:28]} 17. Nd2 {[%emt 0:03:52]} Nxd5 {[%emt 0:01:55]} 18. Nc4 {[%emt 0:07:55]} Nxe3 {[%emt 0:04:02]} 19. Nxe3 {[%emt 0:00:14]} Nc5 {[%emt 0:03:35]} 20. f3 {[%emt 0:05:53]} Qd7 {[%emt 0:03:51]} 21. g4 {[%emt 0:06:22]} Rfd8 {[%emt 0:13:07]} 22. c4 {[%emt 0:03:09]} Ra3 {[%emt 0:03:01]} 23. Nd5 {[%emt 0:03:02]} Rda8 {[%emt 0:01:42]} 24. Nc3 {[%emt 0:01:41]} Nb3 {[%emt 0:06:27]} 25. Rae1 {[%emt 0:02:36]} Nd4 {[%emt 0:01:13]} 26. Qb2 {[%emt 0:00:53]} Qe6 {[%emt 0:04:26]} 27. Bd3 {[%emt 0:01:14]} f6 {[%emt 0:01:03]} 28. Rf2 {[%emt 0:02:10]} Qd7 {[%emt 0:00:51]} 29. Qd2 {[%emt 0:00:55]} Bf7 {[%emt 0:01:14]} 30. Nb1 {[%emt 0:01:07]} Rxa2 {[%emt 0:00:25]} 31. Qe3 {[%emt 0:01:24]} Qc8 {[%emt 0:03:18]} 32. Nc3 {[%emt 0:01:01]} Rxf2+ {[%emt 0:01:17]} 33. Qxf2 {[%emt 0:00:07]} Ra3 {[%emt 0:00:18]} 34. Rc1 {[%emt 0:00:35]} Qa8 {[%emt 0:00:49]} 35. Kg3 {[%emt 0:00:47]} Qa5 {[%emt 0:00:35]} 36. Qb2 {[%emt 0:00:52]} Rb3 {[%emt 0:01:20]} 37. Qd2 {[%emt 0:00:20]} Qb4 {[%emt 0:00:46]} 38. Kf2 {[%emt 0:01:04]} Rb2 {[%emt 0:02:57]} 39. Bc2 {[%emt 0:00:00]} Bxc4 {[%emt 0:00:00]} 40. Nb1 {[%emt 0:00:00]} Rxb1 {[%emt 0:00:00]} 0-1

[Event "European School-ch 2019"]
[Site "Mamaia"]
[Date "2019.06.02"]
[Round "3.50"]
[White "Puia, Alexia-Teodora"]
[Black "Karaivanova, Petya"]
[Result "0-1"]
[ECO "D12"]
[WhiteElo "1543"]
[BlackElo "1688"]
[Annotator "NA"]
[PlyCount "86"]
[EventDate "2019.05.31"]
[EventType "swiss"]
[EventCountry "ROU"]
[SourceTitle "playchess.com"]
[Source "ChessBase"]
[SourceQuality "1"]
[TimeControl "40/5400+30:1800+30"]

1. d4 {[%emt 0:00:00]} d5 {[%emt 0:00:00]} 2. Nf3 {[%emt 0:00:00]} Nf6 {[%emt 0:00:00]} 3. e3 {[%emt 0:00:00]} Bf5 {[%emt 0:00:05]} 4. c4 {[%emt 0:00:00]} c6 {[%emt 0:00:12]} 5. Nc3 {[%emt 0:00:56]} e6 {[%emt 0:00:21]} 6. Be2 {[%emt 0:02:50]} Bd6 {[%emt 0:00:42]} 7. Nh4 {[%emt 0:02:45]} Bg6 {[%emt 0:01:18]} 8. Nxg6 {[%emt 0:03:18]} hxg6 {[%emt 0:00:19]} 9. h3 {[%emt 0:00:04]} Nbd7 {[%emt 0:01:17]} 10. Rb1 {[%emt 0:01:48]} dxc4 {[%emt 0:05:32]} 11. Bxc4 {[%emt 0:00:13]} Nb6 {[%emt 0:00:20]} 12. Be2 {[%emt 0:04:32]} Rc8 {[%emt 0:10:59]} 13. O-O {[%emt 0:03:50]} Bb8 {[%emt 0:02:56]} 14. e4 {[%emt 0:18:38]} Qc7 {[%emt 0:04:36]} 15. e5 {[%emt 0:00:53]} Nfd5 {[%emt 0:01:20]} 16. Nxd5 {[%emt 0:01:25]} Nxd5 {[%emt 0:00:17]} 17. f4 {[%emt 0:11:45]} a6 {[%emt 0:06:08]} 18. Bf3 {[%emt 0:03:53]} Ne7 {[%emt 0:03:25]} 19. Be3 {[%emt 0:07:06]} Nf5 {[%emt 0:01:06]} 20. Bf2 {[%emt 0:00:27]} Rd8 {[%emt 0:03:09]} 21. Rc1 {[%emt 0:06:29]} Qd7 {[%emt 0:03:28]} 22. Qa4 {[%emt 0:12:55]} O-O {[%emt 0:13:57]} 23. Kh1 {[%emt 0:04:22]} Ba7 {[%emt 0:03:32]} 24. Rfd1 {[%emt 0:00:53]} Ne7 {[%emt 0:03:15]} 25. Qc2 {[%emt 0:01:58]} Nf5 {[%emt 0:03:54]} 26. Qa4 {[%emt 0:00:28]} Kh8 {[%emt 0:02:05]} 27. Bg4 {[%emt 0:01:21]} Nh6 {[%emt 0:03:27]} 28. Bf3 {[%emt 0:00:10]} Nf5 {[%emt 0:02:03]} 29. Bg4 {[%emt 0:00:09]} Ne7 {[%emt 0:00:08]} 30. Bf3 {[%emt 0:00:10]} f6 {[%emt 0:03:33]} 31. Bg4 {[%emt 0:01:55]} Nd5 {[%emt 0:01:08]} 32. Qc2 {[%emt 0:05:26]} f5 {[%emt 0:00:55]} 33. Bf3 {[%emt 0:00:32]} Nxf4 {[%emt 0:02:20]} 34. Qd2 {[%emt 0:01:21]} Nd5 {[%emt 0:00:11]} 35. Qg5 {[%emt 0:00:58]} Kh7 {[%emt 0:01:54]} 36. h4 {[%emt 0:00:32]} Qe7 {[%emt 0:01:46]} 37. Qxe7 {[%emt 0:02:32]} Nxe7 {[%emt 0:00:04]} 38. Rc3 {[%emt 0:00:31]} Nd5 {[%emt 0:01:07]} 39. Rb3 {[%emt 0:00:29]} Rf7 {[%emt 0:00:16]} 40. Be1 {[%emt 0:00:00]} Rfd7 {[%emt 0:00:00]} 41. Ba5 {[%emt 0:01:15]} Rb8 {[%emt 0:02:31]} 42. Bc3 {[%emt 0:00:55]} Ne3 {[%emt 0:04:54]} 43. Ba5 {[%emt 0:02:08]} Nxd1 0-1

[Event "European School-ch 2019"]
[Site "Mamaia"]
[Date "2019.06.02"]
[Round "3.51"]
[White "Aydin, Gulenay"]
[Black "Palos, Andra-Maria"]
[Result "1-0"]
[ECO "B10"]
[WhiteElo "1967"]
[BlackElo "1487"]
[Annotator "NA"]
[PlyCount "79"]
[EventDate "2019.05.31"]
[EventType "swiss"]
[EventCountry "ROU"]
[SourceTitle "playchess.com"]
[Source "ChessBase"]
[SourceQuality "1"]
[TimeControl "40/5400+30:1800+30"]

1. e4 {[%emt 0:00:00]} c6 {[%emt 0:00:00]} 2. Nc3 {[%emt 0:00:00]} d5 {[%emt 0:00:03]} 3. Nf3 {[%emt 0:00:00]} dxe4 {[%emt 0:01:23]} 4. Nxe4 {[%emt 0:00:00]} Bf5 {[%emt 0:00:58]} 5. Ng3 {[%emt 0:00:17]} Bg6 {[%emt 0:01:28]} 6. h4 {[%emt 0:01:11]} h6 {[%emt 0:00:27]} 7. Ne5 {[%emt 0:00:47]} Qd6 {[%emt 0:12:37]} 8. Nxg6 {[%emt 0:00:08]} Qxg6 {[%emt 0:00:15]} 9. d4 {[%emt 0:01:15]} Qd6 {[%emt 0:01:47]} 10. Be2 {[%emt 0:07:50]} Nf6 {[%emt 0:01:42]} 11. O-O {[%emt 0:02:29]} e6 {[%emt 0:01:21]} 12. c4 {[%emt 0:07:23]} Qc7 {[%emt 0:08:10]} 13. Bd3 {[%emt 0:06:45]} Bd6 {[%emt 0:06:39]} 14. Nh5 {[%emt 0:05:52]} Nxh5 {[%emt 0:14:50]} 15. Qxh5 {[%emt 0:00:03]} Nd7 {[%emt 0:00:11]} 16. Qg4 {[%emt 0:05:41]} g5 {[%emt 0:08:56]} 17. h5 {[%emt 0:01:26]} O-O-O {[%emt 0:01:28]} 18. a3 {[%emt 0:04:38]} f5 {[%emt 0:06:15]} 19. Qe2 {[%emt 0:01:19]} Rde8 {[%emt 0:00:55]} 20. b4 {[%emt 0:02:01]} Rhf8 {[%emt 0:02:34]} 21. c5 {[%emt 0:15:06]} Bf4 {[%emt 0:04:50]} 22. Bc4 {[%emt 0:08:24]} e5 {[%emt 0:08:57]} 23. d5 {[%emt 0:06:29]} cxd5 {[%emt 0:03:13]} 24. Bxd5 {[%emt 0:00:40]} Nf6 {[%emt 0:00:51]} 25. Bc4 {[%emt 0:01:53]} Kb8 {[%emt 0:02:33]} 26. c6 {[%emt 0:03:47]} bxc6 {[%emt 0:05:11]} 27. b5 {[%emt 0:04:09]} c5 {[%emt 0:01:03]} 28. a4 {[%emt 0:03:54]} Qa5 {[%emt 0:01:15]} 29. b6 {[%emt 0:04:18]} Bxc1 {[%emt 0:02:54]} 30. bxa7+ {[%emt 0:01:04]} Kxa7 {[%emt 0:00:07]} 31. Rfxc1 {[%emt 0:00:20]} Ne4 {[%emt 0:00:37]} 32. Bd5 {[%emt 0:01:27]} Qd2 {[%emt 0:01:16]} 33. Qxd2 {[%emt 0:01:47]} Nxd2 {[%emt 0:00:08]} 34. Rc2 {[%emt 0:01:40]} Ne4 {[%emt 0:00:53]} 35. Bxe4 {[%emt 0:00:02]} fxe4 {[%emt 0:00:07]} 36. Rxc5 {[%emt 0:00:04]} Re6 {[%emt 0:00:16]} 37. Re1 {[%emt 0:02:32]} Rf4 {[%emt 0:00:12]} 38. g3 {[%emt 0:00:50]} Rf5 {[%emt 0:01:30]} 39. Rxe4 {[%emt 0:00:33]} Ref6 {[%emt 0:00:25]} 40. Re2 {[%emt 0:00:00]} 1-0

[Event "European School-ch 2019"]
[Site "Mamaia"]
[Date "2019.06.02"]
[Round "3.52"]
[White "Alimova, Dana"]
[Black "Shuqja, Klean"]
[Result "0-1"]
[ECO "B01"]
[WhiteElo "1732"]
[BlackElo "1858"]
[Annotator "NA"]
[PlyCount "71"]
[EventDate "2019.05.31"]
[EventType "swiss"]
[EventCountry "ROU"]
[SourceTitle "playchess.com"]
[Source "ChessBase"]
[SourceQuality "1"]
[TimeControl "40/5400+30:1800+30"]

1. e4 {[%emt 0:00:00]} d5 {[%emt 0:00:00]} 2. exd5 {[%emt 0:00:00]} Qxd5 {[%emt 0:00:00]} 3. Nc3 {[%emt 0:00:00]} Qd8 {[%emt 0:00:00]} 4. d4 {[%emt 0:00:12]} Nf6 {[%emt 0:00:00]} 5. Bc4 {[%emt 0:00:12]} a6 {[%emt 0:00:00]} 6. Nf3 {[%emt 0:00:50]} b5 {[%emt 0:00:00]} 7. Bb3 {[%emt 0:12:12]} c5 {[%emt 0:00:00]} 8. dxc5 {[%emt 0:08:48]} Qxd1+ {[%emt 0:00:00]} 9. Nxd1 {[%emt 0:01:22]} e6 {[%emt 0:00:04]} 10. Bf4 {[%emt 0:20:44]} Bxc5 {[%emt 0:01:29]} 11. Ne3 {[%emt 0:03:05]} Bb7 {[%emt 0:02:08]} 12. O-O-O {[%emt 0:08:17]} O-O {[%emt 0:02:58]} 13. c3 {[%emt 0:20:30]} Nbd7 {[%emt 0:07:15]} 14. Ne5 {[%emt 0:05:56]} Nb6 {[%emt 0:05:15]} 15. Nd3 {[%emt 0:05:21]} Be7 {[%emt 0:03:24]} 16. f3 {[%emt 0:02:58]} a5 {[%emt 0:03:04]} 17. Kb1 {[%emt 0:03:13]} a4 {[%emt 0:03:48]} 18. Bc2 {[%emt 0:00:12]} Nfd5 {[%emt 0:02:18]} 19. Nxd5 {[%emt 0:01:18]} Nxd5 {[%emt 0:01:05]} 20. Bd2 {[%emt 0:01:55]} a3 {[%emt 0:05:53]} 21. Nf4 {[%emt 0:01:50]} axb2 {[%emt 0:07:19]} 22. Kxb2 {[%emt 0:00:24]} Ba3+ {[%emt 0:05:58]} 23. Kb1 {[%emt 0:00:17]} Nb6 {[%emt 0:05:05]} 24. Bc1 {[%emt 0:01:48]} Rfc8 {[%emt 0:02:05]} 25. Rd3 {[%emt 0:00:35]} e5 {[%emt 0:06:27]} 26. Ne2 {[%emt 0:00:10]} Nc4 {[%emt 0:06:32]} 27. Re1 {[%emt 0:00:48]} b4 {[%emt 0:04:19]} 28. cxb4 {[%emt 0:00:32]} Bxb4 {[%emt 0:00:16]} 29. Red1 {[%emt 0:00:24]} Ba6 {[%emt 0:05:22]} 30. Rb3 {[%emt 0:00:35]} Rcb8 {[%emt 0:01:26]} 31. Be4 {[%emt 0:00:26]} Bb7 {[%emt 0:06:59]} 32. Bxb7 {[%emt 0:00:17]} Rxb7 {[%emt 0:00:03]} 33. a3 {[%emt 0:00:37]} Rba7 {[%emt 0:12:19]} 34. Rxb4 {[%emt 0:00:29]} Nxa3+ {[%emt 0:00:09]} 35. Bxa3 {[%emt 0:00:26]} Rxa3 {[%emt 0:00:01]} 36. Nc1 {a expirat timpul de joc} 0-1